[Event "CCT Chessable Masters D-I 2024"]
[Site "Online"]
[Date "2024.02.02"]
[Round "1"]
[White "Firouzja, Alireza"]
[Black "Bigfish"]
[Result "0-1"]
[ECO "B12"]
[WhiteElo "2759"]
[BlackElo "2784"]
[Annotator "TA"]
[PlyCount "102"]
[EventDate "2024.01.12"]
[EventType "k.o."]
[EventCountry "NET"]
[SourceTitle "playchess.com"]
[Source "ChessBase"]
[SourceQuality "1"]
[TimeControl "600+2"]

{[%evp 9,102,0,0,0,16,18,44,43,52,52,41,47,44,41,47,44,46,43,77,77,68,40,124,20,20,33,62,53,206,256,229,264,232,235,531,553,498,26,26,18,19,29,25,-13,-23,-204,-214,-197,-191,-286,-310,-342,-243,-241,-221,-315,-324,-389,-383,-460,-452,-511,-508,-514,-499,-719,-497,-524,-508,-502,-486,-456,-449,-468,-465,-902,-877,-1268,-745,-1391,-1064,-1229,-1118,-1266,-1092,-1416,-1343,-29966,-29968,-29968,-29967,-29968,-10193,-5755,-4137]} 1. e4 {[%emt 0:00:03]} c6 {[%emt 0:00:07]} 2. d4 {[%emt 0:00:21]} d5 {[%emt 0:00:00]} 3. e5 {[%emt 0:00:01]} c5 {[%emt 0:00:07]} 4. Nf3 {[%emt 0:00:04]} cxd4 {[%emt 0:00:03]} 5. Qxd4 {[%emt 0:00:02]} Nc6 {[%emt 0:00:02]} 6. Qf4 {[%emt 0:00:01]} g6 {[%emt 0:00:02]} 7. Nc3 {[%emt 0:00:29]} d4 {[%emt 0:01:33] Inhibits Be3.} 8. Nb5 {[%emt 0:00:58] Threatens to win with e6. White is slightly better.} Bh6 {[%emt 0:00:18]} 9. Qh4 {[%emt 0:00:03]} Bxc1 {[%emt 0:00:14]} 10. Rxc1 {[%emt 0:00:01][%cal Oh4f4]} a6 {[%emt 0:00:31]} 11. Nbxd4 {[%emt 0:00:03][%cal Bb5d4,Bd4f3,Bf3g5,Bg5e4,Be4f6][%mdl 32]} Nxe5 {[%emt 0:00:01]} 12. Be2 {[%emt 0:00:19]} Qa5+ {[%emt 0:00:21]} 13. c3 {[%emt 0:00:16]} Nf6 {[%emt 0:00:31]} 14. O-O {[%emt 0:00:42]} Nxf3+ {[%emt 0:00:33]} 15. Nxf3 {[%emt 0:00:41]} Qxa2 {[%emt 0:00:17] [#]} (15... Be6 $14) 16. Rfe1 {[%emt 0:01:49]} ({White should play} 16. Bc4 $1 $16 {[%cal Rc4a2]} Qxb2 17. Rce1) 16... O-O {[%emt 0:00:15]} 17. Qb4 {[%emt 0:00:43][%cal Of3d4][%mdl 1024] White has compensation.} Nd5 {[%emt 0:01:21]} 18. Qd4 {[%emt 0:00:04] Bc4 would now be deadly.} e6 $2 {[%emt 0:01:34]} (18... Nc7 $1 $14) 19. c4 $18 {[%emt 0:01:38]} Nb4 {[%emt 0:00:03] [#]} 20. Ng5 $1 {[%emt 0:01:25] Hoping for Qh4.} h6 {[%emt 0:01:00]} 21. Ne4 {[%emt 0:00:12]} Nc6 $2 {[%emt 0:00:01]} (21... Qa5 22. Nf6+ Kh8) 22. Nf6+ {[%emt 0:00:09]} Kh8 {[%emt 0:00:02]} 23. Qh4 {[%emt 0:00:06]} (23. Qd2 $18 {[%cal Rd2h6]} Kg7 24. Ng4) 23... Kg7 $11 {[%emt 0:00:03]} 24. Ng4 {[%emt 0:00:18]} h5 {[%emt 0:00:04]} 25. Qf6+ {[%emt 0:00:05]} Kh7 {[%emt 0:00:01][%cal Oa2a5]} 26. Bd3 {[%emt 0:00:17]} hxg4 {[%emt 0:00:26]} 27. Bxg6+ $2 {[%emt 0:00:02] White is on the road to losing.} fxg6 $19 {[%emt 0:00:01]} 28. Qxf8 {[%emt 0:00:01]} Qxb2 {[%emt 0:00:00]} 29. Rcd1 {[%emt 0:00:03]} (29. Qf4 {was necessary.}) 29... Qg7 {[%emt 0:00:01]} 30. Qe8 {[%emt 0:00:04]} Qe7 {[%emt 0:00:12]} 31. Qxe7+ {[%emt 0:00:01]} Nxe7 {[%emt 0:00:01]} 32. Rd8 {[%emt 0:00:00]} (32. Re4 {keeps fighting.}) 32... Kg7 {[%emt 0:00:10]} 33. c5 {[%emt 0:00:01]} Nc6 {[%emt 0:00:16]} 34. Re8 {[%emt 0:00:01]} a5 {[%emt 0:00:01]} 35. h4 {[%emt 0:00:05]} gxh3 {[%emt 0:00:02]} 36. gxh3 {[%emt 0:00:01]} a4 {[%emt 0:00:00]} 37. R1xe6 {[%emt 0:00:05]} (37. Ra1 $142) 37... Bxe6 {[%emt 0:00:10]} 38. Rxa8 {[%emt 0:00:00]} Bb3 {[%emt 0:00:01]} 39. f4 {[%emt 0:00:01]} Kf6 {[%emt 0:00:05]} 40. Kf2 {[%emt 0:00:01]} Ke6 {[%emt 0:00:02]} 41. h4 {[%emt 0:00:01]} Nd4 {[%emt 0:00:09] aiming for ...Nc2.} (41... Kd5 42. f5 gxf5 (42... Kxc5 43. fxg6 Kb4 44. g7 $11) 43. h5 $17) 42. Ra7 {[%emt 0:00:03]} (42. Ke3 $142 Nf5+ 43. Kf3) 42... Kd5 {[%emt 0:00:06]} 43. Rxb7 {[%emt 0:00:01]} Kxc5 {[%emt 0:00:00] And now ...a3 would win.} 44. Ke3 {[%emt 0:00:03]} Nf5+ {[%emt 0:00:01]} 45. Kd2 {[%emt 0:00:00]} Nxh4 {[%emt 0:00:04]} 46. Kc3 {[%emt 0:00:01]} Ng2 {[%emt 0:00:11]} 47. Rb4 {[%emt 0:00:05]} Ne3 {[%emt 0:00:07] ( -> ...Nd5+)} 48. Re4 {[%emt 0:00:01]} Nd1+ {[%emt 0:00:07]} 49. Kd2 {[%emt 0:00:01]} a3 {[%emt 0:00:01]} 50. Re5+ {[%emt 0:00:01]} Kb4 {[%emt 0:00:01]} (50... Kb6 $142 51. Re8 a2 52. Ra8 Nb2 53. Kc3 Na4+ 54. Kxb3 a1=Q (54... a1=B $2 {loses.} 55. Rxa4 Bh8 56. Kc4 $18) 55. Rxa4 Qxa4+ 56. Kxa4 Kc5 57. Kb3 Kd4 58. Kc2 Ke3 59. Kd1 Kxf4 60. Ke2 Kg3 61. Ke3 g5 62. Ke2 g4 63. Kf1 Kh2 64. Kf2 g3+ 65. Ke3 g2 66. Ke4 g1=Q (66... g1=B 67. Kf5 $11) 67. Kd5 Kg3 68. Kd6 Qb6+ 69. Kd5 Kf4 70. Kc4 Ke4 71. Kc3 Qb5 72. Kc2 Qb4 73. Kd1 Kd3 74. Kc1 Qb8 75. Kd1 Qb1#) 51. Re4+ {[%emt 0:00:00]} Bc4 {[%emt 0:00:04] Weighted Error Value: White=1.07/Black=0.48.  Loses game:     	White=1     	---        Missed win:     	White=1     	---        Mistake:       	White=5     	Black=3      Inaccurate:     	White=3     	Black=4      OK:         	White=14    	Black=15     Best:        	White=4     	Black=6      Strong:       	White=1     	---} 0-1

[Event "CCT Chessable Masters D-I 2024"]
[Site "Online"]
[Date "2024.02.02"]
[Round "1"]
[White "So, Wesley"]
[Black "Carlsen, Magnus"]
[Result "1/2-1/2"]
[ECO "C50"]
[WhiteElo "2757"]
[BlackElo "2830"]
[Annotator "TA"]
[PlyCount "113"]
[EventDate "2024.01.12"]
[EventType "k.o."]
[EventCountry "NET"]
[SourceTitle "playchess.com"]
[Source "ChessBase"]
[SourceQuality "1"]
[TimeControl "600+2"]

{[%evp 33,113,31,31,17,22,0,0,8,0,15,17,0,0,0,0,0,0,0,0,0,0,0,0,7,9,0,8,0,0,0,12,0,0,0,0,0,10,0,15,15,45,23,22,24,39,44,45,0,0,0,0,0,0,0,0,0,0,0,0,0,0,0,0,0,0,0,0,-21,-19,-28,-8,-18,-8,-7,-8,-8,0,-8,0,-8,0,-8]} 1. e4 {[%emt 0:00:09]} e5 {[%emt 0:00:05]} 2. Nf3 {[%emt 0:00:03]} Nc6 {[%emt 0:00:01]} 3. Bc4 {[%emt 0:00:07]} Nf6 {[%emt 0:00:03]} 4. d3 {[%emt 0:00:01]} Bc5 {[%emt 0:00:07]} 5. Bg5 {[%emt 0:00:03]} h6 {[%emt 0:00:03]} 6. Bh4 {[%emt 0:00:02]} Be7 {[%emt 0:00:03] C50: Hungarian Defence and Giuoco Pianissimo.} (6... d6 7. c3 a6 8. a4 Ba7 9. Nbd2 Qe7 10. O-O g5 11. Bg3 Nh7 12. b4 Nf8 13. b5 Na5 14. Bd5 c6 15. Ba2 Ng6 16. Rb1 axb5 17. axb5 cxb5 18. Rxb5 Nc6 19. Bd5 h5 20. h3 g4 21. hxg4 hxg4 {1-0 So,W (2776)-Carlsen,M (2864) Norway Chess Armageddon 10th rapid 2022 (2)}) 7. a4 {[%emt 0:00:06]} a5 {[%emt 0:00:05]} 8. Bg3 {[%emt 0:00:48]} d6 {[%emt 0:00:02]} 9. Nbd2 {[%emt 0:00:03]} O-O {[%emt 0:00:02]} 10. c3 {[%emt 0:00:13]} Nd7 {[%emt 0:01:34]} 11. Nf1 {[%emt 0:00:23]} Nb6 {[%emt 0:00:38]} 12. Bb3 {[%emt 0:00:02]} Bf6 {[%emt 0:00:02]} 13. Ne3 {[%emt 0:00:05]} Re8 {[%emt 0:00:01]} 14. O-O {[%emt 0:02:15]} Be6 $146 {[%emt 0:00:02]} ({Predecessor:} 14... Ne7 15. Nh4 Be6 16. Bxe6 fxe6 17. Nf3 Ng6 18. d4 exd4 19. Nxd4 e5 20. Nb5 Kh7 {1-0 Demchenko,A (2645)-Delchev,A (2588) TUR-chT 1st League 2017 (6.2)}) 15. Bxe6 {[%emt 0:00:03]} Rxe6 {[%emt 0:00:00]} 16. Nd5 {[%emt 0:00:02]} Nd7 {[%emt 0:00:16]} 17. Nd2 {[%emt 0:00:10]} Ne7 {[%emt 0:00:28]} 18. Ne3 {[%emt 0:00:59]} Bg5 {[%emt 0:00:33]} 19. f4 {[%emt 0:00:09]} exf4 {[%emt 0:00:01]} 20. Bxf4 {[%emt 0:00:00]} Bxf4 {[%emt 0:00:01]} 21. Rxf4 {[%emt 0:00:00]} Nf6 {[%emt 0:00:01]} 22. Ng4 {[%emt 0:01:07]} Ng6 {[%emt 0:00:26]} 23. Rf5 {[%emt 0:00:23]} (23. Rxf6 {simplifies} Rxf6 24. Nxf6+ Qxf6 25. Qe2) 23... Nxg4 {[%emt 0:00:03]} 24. Qxg4 {[%emt 0:00:00]} Ne5 {[%emt 0:00:02]} 25. Qg3 {[%emt 0:00:05]} Rg6 {[%emt 0:00:05]} 26. Qh3 {[%emt 0:00:07]} Rf6 {[%emt 0:01:31]} 27. d4 {[%emt 0:00:08]} Rxf5 {[%emt 0:00:01]} 28. Qxf5 {[%emt 0:00:00]} Nd7 {[%emt 0:00:01]} 29. Rf1 {[%emt 0:00:18]} Qe8 {[%emt 0:00:01]} 30. b3 {[%emt 0:00:25]} Nf6 {[%emt 0:00:02]} 31. Re1 {[%emt 0:00:26]} b6 {[%emt 0:01:09]} 32. h3 {[%emt 0:00:02]} Qc6 {[%emt 0:00:07]} 33. Re3 {[%emt 0:00:02]} Re8 {[%emt 0:00:02]} 34. Kf2 {[%emt 0:00:04]} Kf8 {[%emt 0:00:03]} 35. Ke2 {[%emt 0:00:02]} Qb7 {[%emt 0:00:09]} 36. g4 {[%emt 0:00:14]} Qc8 {[%emt 0:01:20]} (36... Re6 {looks sharper.} 37. h4 Kg8 38. g5 hxg5 39. hxg5 g6) 37. Kd3 {[%emt 0:00:10]} (37. Qxc8 {simplifies} Rxc8 38. Kd3 Ke7 39. Nc4) 37... Qxf5 {[%emt 0:00:04]} 38. gxf5 {[%emt 0:00:00]} g6 {[%emt 0:00:01]} 39. fxg6 {[%emt 0:00:58]} fxg6 {[%emt 0:00:02]} 40. Nf3 {[%emt 0:00:01]} Nh5 {[%emt 0:00:06]} 41. h4 {[%emt 0:00:07]} Nf4+ {[%emt 0:00:02]} 42. Kd2 {[%emt 0:00:01]} Ng2 {[%emt 0:00:04]} 43. Re2 {[%emt 0:00:05]} Nf4 {[%emt 0:00:02]} 44. Re1 {[%emt 0:00:01]} Kg7 {[%emt 0:00:01]} 45. e5 {[%emt 0:00:08]} dxe5 {[%emt 0:00:04]} 46. Nxe5 {[%emt 0:00:00]} g5 {[%emt 0:00:04]} 47. Rg1 {[%emt 0:00:03]} Kf6 $1 {[%emt 0:00:01]} 48. Ng4+ {[%emt 0:00:04]} Kg6 {[%emt 0:00:02]} 49. Ne5+ {[%emt 0:00:00]} Kf5 {[%emt 0:00:07]} 50. hxg5 {[%emt 0:00:04]} hxg5 {[%emt 0:00:00]} 51. Rh1 {[%emt 0:00:01]} c5 {[%emt 0:00:10]} (51... Re7 $5) 52. Ke3 {[%emt 0:00:26]} cxd4+ {[%emt 0:00:05]} 53. cxd4 {[%emt 0:00:00]} Rc8 {[%emt 0:00:15]} 54. Nc4 {[%emt 0:00:01]} Re8+ {[%emt 0:00:01]} 55. Ne5 {[%emt 0:00:01]} Rc8 {[%emt 0:00:03]} 56. Nc4 {[%emt 0:00:03]} Re8+ {[%emt 0:00:01]} 57. Ne5 {[%emt 0:00:11]} 1/2-1/2

[Event "CCT Chessable Masters D-I 2024"]
[Site "Online"]
[Date "2024.02.02"]
[Round "1"]
[White "Martinez Alcantara, Jose Eduardo"]
[Black "Nepomniachtchi, Ian"]
[Result "1/2-1/2"]
[ECO "C42"]
[WhiteElo "2610"]
[BlackElo "2769"]
[Annotator "TA"]
[PlyCount "127"]
[EventDate "2024.01.12"]
[EventType "k.o."]
[EventCountry "NET"]
[SourceTitle "playchess.com"]
[Source "ChessBase"]
[SourceQuality "1"]
[TimeControl "600+2"]

{[%evp 52,127,16,19,11,0,0,0,0,0,0,-2,0,0,0,0,0,-7,0,-12,0,0,0,-14,0,-15,-8,-106,-113,-99,-106,-106,-106,-119,-44,-44,-43,-52,0,-110,-12,-14,-16,-15,-10,-36,-14,-14,-10,-14,-18,-44,-8,-8,-8,-8,0,-20,0,0,0,0,0,0,0,0,0,0,0,0,0,0,0,0,0,0,0,0]} 1. e4 {[%emt 0:00:02]} e5 {[%emt 0:00:03]} 2. Nf3 {[%emt 0:00:03]} Nf6 {[%emt 0:00:01]} 3. Nxe5 {[%emt 0:00:00]} d6 {[%emt 0:00:01]} 4. Nd3 {[%emt 0:00:01]} Nxe4 {[%emt 0:00:01]} 5. Qe2 {[%emt 0:00:00]} Qe7 {[%emt 0:00:03]} 6. Nf4 {[%emt 0:00:01] C42: Petroff Defence: 3 Nxe5 and unusual White 3rd moves.} Nf6 {[%emt 0:00:01]} 7. d4 {[%emt 0:00:06]} Qxe2+ {[%emt 0:00:03]} 8. Bxe2 {[%emt 0:00:00]} Nc6 {[%emt 0:00:00]} 9. c3 {[%emt 0:00:02]} d5 {[%emt 0:00:03]} 10. f3 {[%emt 0:00:03]} Nd8 {[%emt 0:00:01]} 11. Kf2 {[%emt 0:00:01] 11.Na3 is setting a new trend.} Bd6 {[%emt 0:00:04]} 12. Na3 {[%emt 0:00:09]} c6 {[%emt 0:00:01]} 13. Nc2 {[%emt 0:00:00]} Ne6 $146 {[%emt 0:00:01]} ({Predecessor:} 13... Bf5 14. Nd3 h5 15. Bg5 Nd7 16. Ne3 Bh7 17. Bf4 Ke7 18. Bxd6+ Kxd6 19. Nf4 h4 {1-0 Vachier Lagrave,M (2727)-Nepomniachtchi,I (2771) AI Cup Div 1 L rapid 2023 (4.1)}) 14. Nd3 {[%emt 0:00:18]} h5 {[%emt 0:00:14]} 15. Ne3 {[%emt 0:00:24]} g6 {[%emt 0:00:03]} 16. h4 {[%emt 0:00:13]} a5 {[%emt 0:00:16]} 17. g3 {[%emt 0:00:23]} b6 {[%emt 0:00:05]} 18. Ng2 {[%emt 0:00:06]} Ba6 {[%emt 0:00:19]} 19. Ndf4 {[%emt 0:00:51]} Bxe2 {[%emt 0:00:07]} 20. Kxe2 {[%emt 0:00:02]} Ng7 {[%emt 0:00:05]} 21. Kf2 {[%emt 0:00:05]} Nf5 {[%emt 0:00:20]} 22. Ne2 {[%emt 0:00:04]} Kd7 {[%emt 0:00:05]} 23. Bf4 {[%emt 0:00:08]} Rhe8 {[%emt 0:00:04]} 24. Rhe1 {[%emt 0:00:04]} a4 {[%emt 0:00:02]} 25. Bxd6 {[%emt 0:00:11]} Nxd6 {[%emt 0:00:01]} 26. Nef4 {[%emt 0:00:03]} Nc4 {[%emt 0:00:16]} 27. Nd3 {[%emt 0:00:20]} Kd6 {[%emt 0:00:02]} 28. Ne3 {[%emt 0:00:50]} (28. Rxe8 {simplifies} Rxe8 29. Ngf4 Kc7 30. Re1) 28... Nxe3 {[%emt 0:00:05]} 29. Rxe3 {[%emt 0:00:00]} Rxe3 {[%emt 0:00:05]} 30. Kxe3 {[%emt 0:00:00]} Nd7 {[%emt 0:00:02]} 31. Kd2 {[%emt 0:00:11]} c5 {[%emt 0:00:14]} 32. Re1 {[%emt 0:00:27]} Rc8 {[%emt 0:00:01]} 33. dxc5+ {[%emt 0:01:05]} bxc5 {[%emt 0:00:02]} 34. Kc2 {[%emt 0:00:00]} f6 {[%emt 0:00:14]} 35. Rd1 {[%emt 0:00:39]} g5 {[%emt 0:00:38]} 36. Rh1 {[%emt 0:00:58]} Rh8 {[%emt 0:00:03]} 37. Kd2 {[%emt 0:00:48]} Nb6 {[%emt 0:00:40]} 38. hxg5 {[%emt 0:00:55]} fxg5 {[%emt 0:00:08]} 39. g4 {[%emt 0:00:01]} (39. f4 $11) 39... h4 {[%emt 0:00:10]} 40. f4 {[%emt 0:00:01]} Nc4+ {[%emt 0:00:03]} 41. Kc1 {[%emt 0:00:01]} gxf4 {[%emt 0:00:26]} 42. Nxf4 {[%emt 0:00:01]} Rf8 {[%emt 0:00:00]} (42... Ne5 $17 {[%cal Oh8f8]} 43. Nh5 Nxg4 (43... a3 44. bxa3 Nxg4 45. Rxh4 $11) 44. Rxh4 a3 (44... Nf6 45. Ng3 $11)) 43. Nd3 $15 {[%emt 0:00:18]} Rf3 {[%emt 0:00:02]} 44. Ne1 {[%emt 0:00:53]} Rf2 {[%emt 0:00:37]} ({Black should play} 44... Re3 $15 45. Ng2 Re2) 45. g5 {[%emt 0:00:04]} (45. Nd3 $11 {remains equal.} Rf3 46. Ne1) 45... Rxb2 {[%emt 0:00:25]} (45... a3 $17 46. b3 Ne5 47. Rxh4 Rxa2) 46. g6 $11 {[%emt 0:00:01]} Ke7 {[%emt 0:01:18]} (46... Rxa2 47. g7 Ra1+ 48. Kc2 Ne3+ (48... Ra2+ $2 49. Kd1 $18) 49. Kb2 $18) 47. Rxh4 {[%emt 0:00:17]} Rxa2 {[%emt 0:00:01]} 48. Nd3 {[%emt 0:00:08]} Rg2 {[%emt 0:00:15]} 49. Nf4 {[%emt 0:00:04]} Rg1+ {[%emt 0:00:01]} 50. Kc2 {[%emt 0:00:00]} Kd6 {[%emt 0:00:40]} 51. Rh6 {[%emt 0:00:01]} Ne3+ {[%emt 0:00:04]} 52. Kb2 {[%emt 0:00:07]} Nf5 {[%emt 0:00:01]} 53. Rh5 {[%emt 0:00:00]} Ne3 {[%emt 0:00:15]} 54. Ka3 {[%emt 0:00:09]} Rg4 {[%emt 0:00:06]} 55. g7 {[%emt 0:00:04]} Rxg7 {[%emt 0:00:05]} (55... Rxf4 56. g8=Q (56. g8=R Kc6 $11) 56... Re4 57. Qb8+ Ke6 58. Qe8+ Kf6 59. Qf8+ Kg6 60. Rh6+ (60. Qh6+ Kf7 61. Qh7+ Ke8 62. Qc7 Nc4+ 63. Kxa4 Ne5+ 64. Ka5 Nf7) 60... Kg5 61. Qf6+ Kg4 62. Rg6+ Kh3 63. Qf3+ Kh2 64. Qh5+) 56. Rh6+ {[%emt 0:00:04]} Ke5 {[%emt 0:01:00]} 57. Nd3+ {[%emt 0:00:01]} Ke4 {[%emt 0:00:04]} 58. Nxc5+ {[%emt 0:00:01]} Kf3 {[%emt 0:00:01]} 59. Kxa4 {[%emt 0:00:03]} Rg8 {[%emt 0:00:06]} 60. Rh3+ {[%emt 0:00:02]} Ke2 {[%emt 0:00:02]} 61. Rh2+ {[%emt 0:00:01]} Kf3 {[%emt 0:00:02]} 62. Rh3+ {[%emt 0:00:01]} Ke2 {[%emt 0:00:02]} 63. Rh2+ {[%emt 0:00:00]} Kf3 {[%emt 0:00:00]} 64. Rh3+ {[%emt 0:00:01]} 1/2-1/2

[Event "CCT Chessable Masters D-I 2024"]
[Site "Online"]
[Date "2024.02.02"]
[Round "1"]
[White "Lazavik, Denis"]
[Black "LyonBeast"]
[Result "1/2-1/2"]
[ECO "D73"]
[WhiteElo "2566"]
[BlackElo "2883"]
[Annotator "TA"]
[PlyCount "61"]
[EventDate "2024.01.12"]
[EventType "k.o."]
[EventCountry "NET"]
[SourceTitle "playchess.com"]
[Source "ChessBase"]
[SourceQuality "1"]
[TimeControl "600+2"]

{[%evp 9,61,8,18,20,14,0,19,7,17,-2,0,4,25,21,19,8,36,41,49,33,25,43,40,31,72,44,43,6,5,0,0,0,8,1,0,0,0,0,0,-10,0,0,0,0,0,0,0,-2,-2,-2,0,0,0,0]} 1. d4 {[%emt 0:00:03]} Nf6 {[%emt 0:00:03]} 2. c4 {[%emt 0:00:01]} g6 {[%emt 0:00:01]} 3. g3 {[%emt 0:00:03]} c6 {[%emt 0:00:00]} 4. Bg2 {[%emt 0:00:01]} d5 {[%emt 0:00:01]} 5. Nf3 {[%emt 0:00:01]} Bg7 {[%emt 0:00:00]} 6. b3 {[%emt 0:00:02]} O-O {[%emt 0:00:08]} 7. Bb2 {[%emt 0:00:01]} dxc4 {[%emt 0:00:01]} 8. bxc4 {[%emt 0:00:01]} c5 {[%emt 0:00:00]} 9. Nbd2 {[%emt 0:00:02]} (9. dxc5 Qxd1+ 10. Kxd1 Rd8+ 11. Ke1 Ne4 12. Bxg7 Kxg7 $17) 9... cxd4 {[%emt 0:00:05]} 10. Nxd4 {[%emt 0:00:01]} Qc7 {[%emt 0:00:01]} 11. O-O {[%emt 0:00:06]} Bd7 {[%emt 0:00:01]} 12. Rc1 {[%emt 0:00:40]} a6 {[%emt 0:00:31]} 13. c5 {[%emt 0:01:44]} Nc6 {[%emt 0:00:34]} 14. Nc4 {[%emt 0:00:08]} Rad8 {[%emt 0:00:14]} 15. Qb3 {[%emt 0:00:09]} Nxd4 {[%emt 0:01:29]} 16. Bxd4 {[%emt 0:00:02]} Be6 {[%emt 0:00:18]} 17. e3 {[%emt 0:01:03] White is more active.} (17. Qxb7 $2 {loses.} Qxb7 18. Bxb7 Rxd4 $19) 17... Bd5 {[%emt 0:01:04]} 18. Qb6 {[%emt 0:00:13]} (18. Bxd5 {simplifies} Rxd5 19. Rfd1 e5 20. Nb6) 18... Qxb6 {[%emt 0:00:41] The position is equal.} 19. cxb6 {[%emt 0:00:30]} Bxg2 {[%emt 0:00:38]} 20. Kxg2 {[%emt 0:00:00]} Ne4 {[%emt 0:00:01]} 21. Bxg7 {[%emt 0:00:51]} Kxg7 {[%emt 0:00:00]} 22. Na5 {[%emt 0:00:03]} Rd2 {[%emt 0:01:05]} 23. Nxb7 {[%emt 0:00:14]} Rxa2 {[%emt 0:00:02]} 24. Nc5 {[%emt 0:01:15]} Nxc5 {[%emt 0:00:03]} 25. Rxc5 $11 {[%emt 0:00:00][%mdl 4096] Endgame. KRR-KRR} Rb2 {[%emt 0:00:00] Prevents Rb1.} 26. Rc6 {[%emt 0:00:01]} a5 {[%emt 0:00:23]} 27. Ra1 {[%emt 0:00:08]} Rd8 {[%emt 0:00:11]} 28. Rcc1 {[%emt 0:00:31]} (28. Rxa5 $2 {too greedy.} Rdd2 29. Kf3 Rxf2+ 30. Ke4 Rb4+ (30... Rxh2 31. Ra7 $17) 31. Kd3 Rxh2 $19) 28... Rdd2 {[%emt 0:00:18]} 29. Rf1 {[%emt 0:00:01]} Rb5 {[%emt 0:00:31][%cal Od2d6]} 30. b7 {[%emt 0:00:35]} Rxb7 {[%emt 0:00:03]} 31. Rxa5 {[%emt 0:00:02] Weighted Error Value: White=0.09 (flawless) /Black=0.05 (flawless) .  Inaccurate:     	White=2     	Black=2      OK:         	White=3     	Black=15     Best:        	White=1     	Black=1} 1/2-1/2

[Event "CCT Chessable Masters D-I 2024"]
[Site "Online"]
[Date "2024.02.03"]
[Round "2"]
[White "Carlsen, Magnus"]
[Black "Bigfish"]
[Result "1-0"]
[ECO "C42"]
[WhiteElo "2830"]
[BlackElo "2803"]
[Annotator "TA"]
[PlyCount "83"]
[EventDate "2024.01.12"]
[EventType "k.o."]
[EventCountry "NET"]
[SourceTitle "playchess.com"]
[Source "ChessBase"]
[SourceQuality "1"]
[TimeControl "600+2"]

{[%evp 14,83,25,27,20,4,11,6,9,7,2,6,4,-8,-16,-11,-12,-12,0,0,2,0,-14,0,0,0,0,0,50,19,45,37,42,25,34,5,43,19,117,119,126,128,187,189,178,181,206,197,209,209,330,309,329,330,360,339,531,514,522,474,487,484,519,556,692,691,783,783,777,776,706,699]} 1. e4 {[%emt 0:00:14]} e5 {[%emt 0:00:04]} 2. Nf3 {[%emt 0:00:03]} Nf6 {[%emt 0:00:01]} 3. Nxe5 {[%emt 0:00:07]} d6 {[%emt 0:00:02]} 4. Nf3 {[%emt 0:00:05]} Nxe4 {[%emt 0:00:02]} 5. Qe2 {[%emt 0:00:01]} Qe7 {[%emt 0:00:05]} 6. d3 {[%emt 0:00:01]} Nf6 {[%emt 0:00:09]} 7. Nc3 {[%emt 0:00:03]} Qxe2+ {[%emt 0:00:20]} 8. Bxe2 {[%emt 0:00:01]} Be7 {[%emt 0:00:11]} 9. Nb5 {[%emt 0:00:57]} Bd8 {[%emt 0:00:14]} 10. c4 {[%emt 0:00:09]} O-O {[%emt 0:00:14] The position is equal.} 11. Be3 {[%emt 0:00:43]} Nc6 {[%emt 0:00:41]} 12. h3 {[%emt 0:00:27]} Re8 {[%emt 0:00:31]} 13. O-O-O {[%emt 0:00:17]} a6 {[%emt 0:00:27]} 14. Nc3 {[%emt 0:00:01] [#]} b5 $1 {[%emt 0:00:02]} 15. Rhe1 {[%emt 0:00:27]} Bb7 {[%emt 0:00:15]} 16. d4 {[%emt 0:01:13]} b4 {[%emt 0:00:41]} 17. Na4 {[%emt 0:00:08]} Ne7 {[%emt 0:00:47]} 18. d5 {[%emt 0:00:13] Prevents Bc6} Bc8 {[%emt 0:00:04]} 19. Bd3 {[%emt 0:00:08]} Bd7 {[%emt 0:00:07]} 20. b3 {[%emt 0:00:06]} Bxa4 {[%emt 0:00:48]} (20... a5 $11) 21. bxa4 $14 {[%emt 0:00:02]} a5 {[%emt 0:00:01]} 22. Nd4 {[%emt 0:00:12]} Ng6 {[%emt 0:00:27]} 23. Nc6 {[%emt 0:01:31]} Nd7 {[%emt 0:00:20]} 24. c5 {[%emt 0:01:23]} dxc5 {[%emt 0:00:55]} (24... Rxe3 $5 25. Rxe3 Bg5 $14) 25. Bb5 {[%emt 0:00:16][%cal Oc6a5]} Rxe3 {[%emt 0:00:18]} 26. fxe3 $16 {[%emt 0:00:08] And now d6 would win. Black is weak on the light squares. White now steadily converts the win.} ({Much worse is} 26. Rxe3 $6 Bg5 $11) 26... Bh4 {[%emt 0:00:18]} 27. Re2 {[%emt 0:00:05] White is much more active.} Nb6 {[%emt 0:00:53]} (27... Kf8 $16 28. d6 cxd6) 28. d6 $18 {[%emt 0:00:04]} cxd6 {[%emt 0:00:03]} 29. Rxd6 {[%emt 0:00:00]} Bg3 {[%emt 0:00:35]} 30. Rd8+ {[%emt 0:00:05]} Rxd8 {[%emt 0:00:02]} 31. Nxd8 {[%emt 0:00:00]} Ne5 {[%emt 0:00:41]} (31... Bc7 {keeps fighting.} 32. Rd2 Ne7) 32. Nb7 {[%emt 0:00:06][%csl LRa5,LRc5]} c4 {[%emt 0:00:13]} 33. Nxa5 {[%emt 0:00:01]} h5 {[%emt 0:00:10]} 34. Nc6 {[%emt 0:00:06]} Nd3+ {[%emt 0:00:01]} (34... Nxc6 $142 35. Bxc6 g5) 35. Kc2 {[%emt 0:00:01] White is clearly winning.} Nc5 {[%emt 0:00:08]} 36. Nxb4 {[%emt 0:00:03]} Ncxa4 {[%emt 0:00:03]} 37. Bxa4 {[%emt 0:00:05]} Nxa4 {[%emt 0:00:01] KRN-KBN} 38. Rd2 {[%emt 0:00:04]} g6 {[%emt 0:00:01]} 39. Rd4 {[%emt 0:00:01]} Nb6 {[%emt 0:00:05]} 40. Nd5 {[%emt 0:00:02]} Nc8 {[%emt 0:00:08]} 41. Rxc4 {[%emt 0:00:01]} Nd6 {[%emt 0:00:01]} 42. Rc6 {[%emt 0:00:02] Weighted Error Value: White=0.06 (flawless) /Black=0.31.  Mistake:       	---       	Black=5      Inaccurate:     	White=2     	Black=2      OK:         	White=15    	Black=8      Best:        	White=1     	Black=1} 1-0